bitfinex/quotes_BTCUSD_20250110
["timestamp","ask_amount","ask_price","bid_price","bid_amount"]
[1736518303513,0.212244,94232.0,94217.0,0.212274]
[1736518303737,0.212246,94230.0,94218.0,0.212273]
[1736518304079,0.212244,94232.0,94228.0,0.001]
[1736518304309,0.212225,94240.0,94228.0,0.001]
[1736518304516,0.212233,94236.0,94207.0,0.00014604]
[1736518304725,0.00132658,94235.0,94229.0,0.00945792]
[1736518304932,0.00132658,94235.0,94224.0,0.212258]
[1736518305143,0.00132658,94235.0,94230.0,0.00945606]
[1736518305356,0.212237,94234.0,94224.0,0.212258]
[1736518305564,0.00132658,94233.0,94231.0,0.00945421]
[1736518305740,0.00132658,94233.0,94224.0,0.212258]
[1736518306072,0.00132658,94233.0,94225.0,0.00946533]
[1736518306485,0.212225,94240.0,94225.0,0.00946533]
[1736518306699,0.212234,94236.0,94225.0,0.00946533]
[1736518306920,0.00132658,94235.0,94230.0,0.003]
[1736518307128,0.00132658,94243.0,94224.0,0.212257]
[1736518307333,0.212238,94234.0,94231.0,0.00945421]
[1736518307539,0.00132658,94233.0,94225.0,0.004]
[1736518307748,0.212228,94238.0,94224.0,0.207257]
[1736518307749,0.00132658,94237.0,94226.0,0.212255]
[1736518307956,0.00132658,94237.0,94226.0,0.22171848]
[1736518308206,0.00132658,94237.0,94230.0,0.212244]
[1736518308416,0.212219,94242.0,94226.0,0.00946348]
[1736518308616,0.212219,94242.0,94206.0,0.212298]
[1736518308617,0.00132653,94241.0,94231.0,0.22169721]
[1736518309032,0.023,94239.0,94225.0,0.003]
[1736518309270,0.212254,94227.0,94225.0,0.003]
[1736518309478,0.212259,94225.0,94211.0,0.212289]
[1736518309657,0.0013267,94224.0,94212.0,0.10429976]
[1736518309859,0.21353261,94248.0,94212.0,0.10429976]
[1736518310076,0.21222,94242.0,94229.0,0.212246]
[1736518311040,0.212228,94238.0,94229.0,0.212246]
[1736518311318,0.00132653,94237.0,94222.0,0.212264]
[1736518311502,0.00132653,94237.0,94214.0,0.212281]
[1736518311815,0.00132653,94237.0,94225.0,0.1]
[1736518312022,0.212255,94227.0,94225.0,0.1]
[1736518312569,0.212248,94230.0,94225.0,0.1]
[1736518312775,0.212251,94228.0,94225.0,0.1]
[1736518312976,0.212248,94230.0,94225.0,0.1]
[1736518312977,0.212255,94226.0,94225.0,0.1]
[1736518313181,0.212248,94230.0,94225.0,0.1]
[1736518313437,0.00132665,94229.0,94225.0,0.1]
[1736518313643,0.00132665,94229.0,94225.0,0.104]
[1736518313782,0.212251,94228.0,94226.0,0.00946348]
[1736518314201,0.2,94256.0,94226.0,0.00946348]
[1736518314409,0.07246596,94255.0,94226.0,0.10429976]
[1736518314625,0.21221,94247.0,94226.0,0.10429976]
[1736518314833,0.00132647,94246.0,94227.0,0.00946162]
[1736518315028,0.212212,94245.0,94227.0,0.00946162]
[1736518315321,0.212217,94243.0,94232.0,0.21224]
[1736518315493,0.00132647,94242.0,94232.0,0.21224]
[1736518315698,0.00132647,94242.0,94233.0,0.0094505]
[1736518316320,0.212221,94241.0,94233.0,0.0094505]
[1736518316528,0.00132647,94240.0,94233.0,0.0094505]
[1736518316678,0.00132647,94240.0,94232.0,0.005]
[1736518316889,0.00132647,94240.0,94234.0,0.00944865]
[1736518317092,0.00132647,94240.0,94233.0,0.2216895]
[1736518317291,0.00132647,94240.0,94235.0,0.0094468]
[1736518317609,0.00132647,94242.0,94233.0,0.217239]
[1736518317824,0.00132647,94242.0,94236.0,0.00944494]
[1736518318069,0.00132647,94245.0,94233.0,0.217239]
[1736518318278,0.212211,94246.0,94237.0,0.00944309]
[1736518318416,0.212211,94246.0,94234.0,0.212237]
[1736518318633,0.212211,94246.0,94238.0,0.00944124]
[1736518318831,0.212219,94243.0,94234.0,0.212237]
[1736518319035,0.00132645,94242.0,94239.0,0.00943939]
[1736518319247,0.00132645,94242.0,94234.0,0.212237]
[1736518319452,0.00132645,94242.0,94240.0,0.00943753]
[1736518319654,0.00132645,94242.0,94234.0,0.216237]
[1736518319837,0.00132645,94242.0,94241.0,0.00943568]
[1736518320189,0.212221,94241.0,94239.0,0.004]
[1736518320399,0.00132645,94240.0,94239.0,0.004]
[1736518320595,0.212219,94243.0,94230.0,0.21239204]
[1736518320596,0.212231,94237.0,94230.0,0.00014604]
[1736518320826,0.212235,94235.0,94234.0,0.004]
[1736518321026,0.212235,94235.0,94230.0,0.00014604]
[1736518321224,0.424479,94233.0,94230.0,0.00014604]
[1736518321479,0.00132662,94232.0,94230.0,0.00014604]
[1736518321697,0.212244,94231.0,94230.0,0.00014604]
[1736518321915,0.212239,94233.0,94230.0,0.00014604]
[1736518322139,0.212233,94236.0,94230.0,0.00014604]
[1736518322352,0.21222,94242.0,94230.0,0.00014604]
[1736518322558,0.42444,94242.0,94239.0,0.005]
[1736518322963,0.21222,94242.0,94230.0,0.21439004]
[1736518323174,0.342201,94250.0,94230.0,0.00914604]
[1736518323400,0.13,94250.0,94232.0,0.212242]
[1736518323608,0.13,94250.0,94248.0,0.212204]
[1736518323824,0.13,94250.0,94249.0,0.10429976]
[1736518324477,0.13,94250.0,94249.0,0.00131734]
[1736518324889,0.13,94250.0,94248.0,0.212204]
[1736518325105,0.13,94250.0,94249.0,0.00131734]
[1736518325532,0.13,94250.0,94249.0,0.21352034]
[1736518325773,0.13,94250.0,94249.0,0.212203]
[1736518325979,0.13,94250.0,94249.0,0.3178201]
[1736518326191,0.13,94250.0,94249.0,0.3188201]
[1736518326608,0.13,94250.0,94249.0,0.4001201]
[1736518326847,0.13,94250.0,94249.0,0.4476201]
[1736518327389,0.13,94250.0,94249.0,0.4633564]
[1736518327488,8.51e-05,94281.0,94250.0,0.15]
[1736518327710,8.51e-05,94281.0,94280.0,0.212134]
[1736518328938,0.00023104,94281.0,94280.0,0.31643376]
[1736518329530,0.00023104,94281.0,94280.0,0.31843376]
[1736518330560,0.00023104,94281.0,94280.0,0.32643376]
[1736518330770,0.00023104,94281.0,94280.0,0.44253376]
[1736518330982,0.00023104,94281.0,94280.0,0.59253376]
[1736518331191,0.00023104,94281.0,94280.0,0.60153376]
[1736518331394,0.00023104,94281.0,94280.0,0.59253376]
[1736518331604,4e-08,94281.0,94280.0,2.19378133]
[1736518331811,8.51e-05,94288.0,94287.0,0.362118]
[1736518332035,0.00057172,94288.0,94287.0,0.46641776]
[1736518332238,7.2e-07,94288.0,94287.0,0.86641776]
[1736518332418,7.2e-07,94288.0,94287.0,0.46764958]
[1736518333059,7.2e-07,94288.0,94287.0,0.56764958]
[1736518333474,8.51e-05,94302.0,94301.0,0.212086]
[1736518333689,9.804e-05,94302.0,94301.0,0.10429976]
[1736518333897,0.21192,94375.0,94315.0,0.1]
[1736518334106,0.01437518,94351.0,94350.0,0.211976]
[1736518334317,0.01437518,94351.0,94350.0,0.31627576]
[1736518334535,0.01437518,94351.0,94350.0,0.31736594]
[1736518336001,0.01437518,94351.0,94350.0,0.00109018]
[1736518336995,0.01437518,94351.0,94335.0,0.424018]
[1736518337296,0.01437518,94351.0,94343.0,0.211992]
[1736518337297,0.00123193,94350.0,94343.0,0.211992]
[1736518337564,0.01437518,94351.0,94348.0,0.211979]
[1736518337797,0.01437518,94351.0,94350.0,0.211976]
[1736518338043,0.01437518,94351.0,94350.0,0.009]
[1736518338565,0.01437518,94351.0,94348.0,0.423959]
[1736518339062,0.01437518,94351.0,94350.0,0.004]
[1736518339534,0.01437518,94351.0,94343.0,0.211992]
[1736518339739,0.01437518,94351.0,94338.0,0.212003]
[1736518339949,0.21330087,94350.0,94348.0,0.004]
[1736518340156,0.01437518,94351.0,94348.0,0.004]
[1736518340336,0.01437518,94351.0,94339.0,0.211999]
[1736518340337,0.00132492,94350.0,94339.0,0.211999]
[1736518340716,0.01437518,94351.0,94350.0,0.03171217]
[1736518341122,0.11938895,94351.0,94350.0,0.03171217]
[1736518341468,0.212054,94316.0,94303.0,0.21208]
[1736518341673,0.212075,94307.0,94294.0,0.212102]
[1736518341925,0.212068,94310.0,94295.0,0.10429976]
[1736518342173,0.00071401,94309.0,94298.0,0.212092]
[1736518342486,0.212067,94310.0,94296.0,0.21879548]
[1736518342603,0.212053,94316.0,94300.0,0.212089]
[1736518342852,0.21276901,94315.0,94300.0,0.212089]
[1736518343090,0.212041,94321.0,94301.0,0.00669335]
[1736518343370,0.0009,94648.0,94301.0,0.00669335]
[1736518343371,0.1142771,94351.0,94302.0,0.10536016]
[1736518343620,0.00014588,94331.0,94315.0,0.212054]
[1736518343832,0.00071401,94330.0,94303.0,0.212082]
[1736518344048,0.00071401,94330.0,94294.0,0.005]
[1736518344049,0.21205,94317.0,94316.0,0.00668096]
[1736518344259,0.23505,94317.0,94316.0,0.00668096]
[1736518344490,0.23505,94317.0,94296.0,0.001]
[1736518344694,0.212069,94309.0,94297.0,0.212095]
[1736518344907,0.212069,94309.0,94296.0,0.001]
[1736518345115,0.21208,94304.0,94296.0,0.001]
[1736518345349,0.00071401,94303.0,94296.0,0.001]
[1736518345595,0.023,94317.0,94296.0,0.001]
[1736518345596,0.21278501,94308.0,94296.0,0.001]
[1736518345842,0.212077,94305.0,94296.0,0.001]
[1736518346065,0.00071401,94304.0,94294.0,0.217101]
[1736518346307,0.21208,94304.0,94294.0,0.005]
[1736518346515,0.00071401,94303.0,94294.0,0.005]
[1736518346925,0.00071401,94303.0,94290.0,0.21211]
[1736518347068,0.212084,94302.0,94290.0,0.21211]
[1736518347273,0.00071401,94301.0,94294.0,0.002]
[1736518347513,0.212068,94310.0,94294.0,0.2141]
[1736518347721,0.212071,94308.0,94294.0,0.2141]
[1736518347923,0.212075,94306.0,94295.0,0.00121382]
[1736518348126,0.312009,94336.0,94296.0,0.212098]
[1736518348488,0.00071401,94316.0,94304.0,0.212079]
[1736518348725,0.00071401,94316.0,94305.0,0.212076]
[1736518348931,0.212055,94315.0,94306.0,0.00118909]
[1736518349146,0.212039,94323.0,94306.0,0.00118909]
[1736518349358,0.21275301,94322.0,94300.0,0.225087]
[1736518349532,0.212039,94322.0,94308.0,0.212071]
[1736518349676,0.00071401,94321.0,94308.0,0.212071]
[1736518349879,0.00071401,94321.0,94310.0,0.212066]
[1736518350137,0.00071401,94321.0,94311.0,0.00117784]
[1736518350349,0.212012,94335.0,94311.0,0.1054776]
[1736518350579,0.00014588,94335.0,94312.0,0.10429976]
[1736518350779,0.001,94322.0,94321.0,0.212041]
[1736518351191,0.21215588,94335.0,94322.0,0.212039]
[1736518351192,0.00014588,94335.0,94322.0,0.212039]
[1736518351393,0.00314588,94335.0,94321.0,0.00115536]
[1736518351598,0.00314588,94335.0,94304.0,0.15]
[1736518351599,0.00071401,94334.0,94332.0,0.212016]
[1736518351806,0.00314588,94335.0,94334.0,0.212012]
[1736518352014,0.00314588,94335.0,94333.0,0.00779531]
[1736518352220,0.212012,94334.0,94333.0,0.0069482]
[1736518352433,0.023,94333.0,94308.0,0.212069]
[1736518352671,0.023,94331.0,94309.0,0.00875853]
[1736518352883,0.00071401,94330.0,94309.0,0.00875853]
[1736518353128,0.21204,94322.0,94321.0,0.009]
[1736518353613,0.212049,94318.0,94308.0,0.212071]
[1736518353850,0.212049,94318.0,94268.0,0.22107842]
[1736518353851,0.212066,94311.0,94309.0,0.00875853]
[1736518354080,0.00071401,94310.0,94296.0,0.212097]
[1736518354332,0.212068,94309.0,94301.0,0.00877334]
[1736518354580,0.212073,94307.0,94301.0,0.00877334]
[1736518354800,0.21205,94318.0,94295.0,0.212099]
[1736518355002,0.212043,94321.0,94310.0,0.212066]
[1736518355207,0.212023,94329.0,94314.0,0.212055]
[1736518355419,0.001,94322.0,94309.0,0.004]
[1736518355659,0.212041,94321.0,94309.0,0.004]
[1736518355884,0.00071401,94320.0,94309.0,0.004]
[1736518356089,0.212064,94312.0,94309.0,0.004]
[1736518356292,0.212066,94310.0,94309.0,0.004]
[1736518356698,0.212066,94310.0,94294.0,0.212102]
[1736518356832,0.00071401,94309.0,94301.0,0.00877334]
[1736518357041,0.00071401,94309.0,94305.0,0.212077]
[1736518357259,0.01939828,94310.0,94306.0,0.22083908]
[1736518357437,0.01939828,94310.0,94306.0,0.43291408]
[1736518357896,0.212051,94317.0,94306.0,0.22083908]
[1736518358109,0.212055,94315.0,94306.0,0.22083908]
[1736518358312,0.00071401,94314.0,94309.0,0.002]
[1736518358536,0.01939828,94314.0,94310.0,0.22082268]
[1736518358747,0.01939828,94314.0,94310.0,0.22172068]
[1736518359030,0.01939828,94314.0,94310.0,0.43378668]
[1736518359219,0.01939828,94314.0,94312.0,0.212062]
[1736518359654,0.01939828,94327.0,94313.0,0.00875113]
[1736518359989,0.00071401,94326.0,94317.0,0.212049]
[1736518360188,0.01939828,94327.0,94324.0,0.212033]
[1736518360386,0.01939828,94327.0,94325.0,0.00872894]
[1736518360613,0.01939828,94327.0,94326.0,0.21203]
[1736518360830,0.00014588,94335.0,94326.0,0.00872709]
[1736518360831,0.23141128,94334.0,94326.0,0.00872709]
[1736518361057,0.212019,94331.0,94310.0,0.000898]
[1736518361289,0.001,94327.0,94324.0,0.005]
[1736518361718,0.001,94327.0,94325.0,0.00872894]
[1736518362126,0.001,94327.0,94316.0,0.212052]
[1736518362428,0.212032,94325.0,94312.0,0.212062]
[1736518362588,0.212032,94325.0,94310.0,0.000898]
[1736518362589,0.001,94327.0,94310.0,0.000898]
[1736518362847,0.001,94327.0,94323.0,0.212035]
[1736518364113,0.00014588,94335.0,94327.0,0.212028]
[1736518364949,0.00014588,94335.0,94325.0,0.219032]
[1736518365197,0.00014588,94335.0,94325.0,0.212032]
[1736518365669,0.00014588,94335.0,94329.0,0.212023]
[1736518365672,0.00014588,94335.0,94327.0,0.004]
[1736518365885,0.00014588,94335.0,94315.0,0.10429976]
[1736518365886,0.00014588,94335.0,94332.0,0.42403]
[1736518366113,0.00014588,94335.0,94334.0,0.212012]
[1736518366321,0.00014588,94335.0,94334.0,0.31631176]
[1736518367197,8.8e-07,94335.0,94334.0,0.31631176]
[1736518367411,5.069e-05,94370.0,94347.0,0.211983]
[1736518367622,5.069e-05,94370.0,94347.0,0.31628276]
[1736518368281,5.069e-05,94370.0,94347.0,0.46628276]
[1736518368937,5.069e-05,94370.0,94347.0,0.51468276]
[1736518369155,5.069e-05,94370.0,94347.0,0.7566214]
[1736518369393,8.54e-05,94405.0,94361.0,0.15]
[1736518369606,0.2119394,94405.0,94394.0,0.211877]
[1736518369817,0.00071401,94404.0,94394.0,0.211877]
[1736518370454,0.2119394,94405.0,94394.0,0.211877]
[1736518370764,0.2119394,94405.0,94390.0,0.211885]
[1736518370765,0.20765341,94405.0,94390.0,0.211885]
[1736518371103,0.2135368,94409.0,94394.0,0.211876]
[1736518371531,0.211854,94405.0,94394.0,0.211876]
[1736518371744,0.2135368,94409.0,94391.0,0.211883]
[1736518371981,0.211865,94400.0,94395.0,0.00889551]
[1736518372195,0.023,94407.0,94392.0,0.00890106]
[1736518372409,0.211871,94397.0,94396.0,0.00806033]
[1736518372619,0.211882,94393.0,94372.0,0.211926]
[1736518372831,0.211855,94404.0,94384.0,0.211898]
[1736518373039,0.0026918,94409.0,94391.0,0.211884]
[1736518373231,0.211846,94408.0,94396.0,0.211871]
[1736518373429,0.0026918,94409.0,94400.0,0.211862]
[1736518373702,0.0026918,94409.0,94401.0,0.0080511]
[1736518374108,0.0016918,94409.0,94402.0,0.211859]
[1736518374316,0.0016918,94409.0,94402.0,0.21990825]
[1736518374533,0.003,94407.0,94403.0,0.02277581]
[1736518374697,0.003,94407.0,94403.0,0.03082322]
[1736518374916,0.003,94407.0,94404.0,0.211855]
[1736518375114,0.003,94407.0,94404.0,0.21990056]
[1736518375316,0.003,94407.0,94404.0,0.43175556]
[1736518375756,0.003,94407.0,94406.0,0.21185]
[1736518375921,0.003,94407.0,94406.0,0.31614976]
[1736518376099,0.003,94407.0,94406.0,0.32419163]
[1736518376947,0.0016918,94409.0,94406.0,0.00804187]
[1736518377154,0.0016918,94409.0,94405.0,0.211851]
[1736518377392,0.0016918,94409.0,94407.0,0.00804002]
[1736518377586,0.0016918,94409.0,94406.0,0.00804187]
[1736518377781,0.0016918,94409.0,94404.0,0.001]
[1736518377985,0.0016918,94409.0,94401.0,0.211861]
[1736518378256,0.0016918,94409.0,94406.0,0.006]
[1736518378468,0.0016918,94409.0,94405.0,0.00804371]
[1736518378683,0.0016918,94409.0,94407.0,0.00804002]
[1736518378892,0.211846,94408.0,94407.0,0.00804002]
[1736518379099,0.211846,94408.0,94406.0,0.005]
[1736518379513,0.0026918,94409.0,94406.0,0.005]
[1736518380263,0.0016918,94409.0,94406.0,0.005]
[1736518380472,0.0016918,94409.0,94399.0,0.211866]
[1736518380724,0.0016918,94409.0,94407.0,0.006]
[1736518381334,0.0016918,94409.0,94393.0,0.211879]
[1736518381560,0.0016918,94409.0,94408.0,0.00803818]
[1736518381772,0.21187,94398.0,94385.0,0.211896]
[1736518381982,0.42374,94398.0,94385.0,0.211896]
[1736518382198,0.0016918,94409.0,94386.0,0.0080788]
[1736518382199,0.023,94408.0,94386.0,0.0080788]
[1736518382407,0.22031718,94407.0,94386.0,0.0080788]
[1736518382614,0.21185,94406.0,94390.0,0.42377]
[1736518382835,0.0016918,94409.0,94370.0,0.211931]
[1736518382836,0.0016918,94409.0,94398.0,0.211868]
[1736518383058,0.0016918,94409.0,94391.0,0.11236933]
[1736518383287,0.0016918,94409.0,94402.0,0.211859]
[1736518383498,0.0016918,94409.0,94406.0,0.001]
[1736518383902,0.0016918,94409.0,94407.0,0.00804002]
[1736518384559,0.00159884,94409.0,94408.0,0.211846]
[1736518384944,0.00159884,94409.0,94408.0,0.21988418]
[1736518385698,0.00159884,94409.0,94408.0,0.00803818]
[1736518385900,0.00159884,94409.0,94408.0,0.0347669]
[1736518386104,0.00159884,94409.0,94408.0,0.00803818]
[1736518387128,0.00159884,94409.0,94408.0,0.01303818]
[1736518387332,0.02544999,94431.0,94408.0,0.01023666]
[1736518387514,0.211777,94439.0,94419.0,0.211821]
[1736518387715,0.21177,94442.0,94395.0,0.211875]
[1736518387716,0.211791,94433.0,94415.0,0.211829]
[1736518387918,0.023,94430.0,94420.0,0.00667633]
[1736518388167,0.023,94430.0,94412.0,0.211835]
[1736518388168,0.023,94430.0,94416.0,0.211826]
[1736518388713,0.023,94433.0,94418.0,0.211824]
[1736518388921,0.023,94433.0,94419.0,0.211821]
[1736518389127,0.212777,94439.0,94422.0,0.211814]
[1736518389343,0.234781,94437.0,94420.0,0.21849533]
[1736518389550,0.023,94435.0,94423.0,0.00667079]
[1736518389752,0.023,94435.0,94420.0,0.211819]
[1736518389753,0.023,94433.0,94420.0,0.211819]
[1736518390410,0.211781,94437.0,94421.0,0.211817]
[1736518390616,0.0425193,94443.0,94439.0,0.211775]
[1736518390846,0.0425193,94443.0,94435.0,0.211785]
[1736518391056,8.53e-05,94443.0,94440.0,0.00663942]
[1736518391264,8.53e-05,94443.0,94407.0,0.083]
[1736518391265,0.023,94440.0,94407.0,0.083]
[1736518391470,0.023,94438.0,94407.0,0.10429976]
[1736518391691,0.211799,94430.0,94416.0,0.211827]
[1736518391910,0.211785,94435.0,94420.0,0.211819]
[1736518391911,0.023,94434.0,94420.0,0.211819]
[1736518392134,0.211777,94439.0,94420.0,0.211819]
[1736518392339,0.2118533,94443.0,94406.0,0.0459]
[1736518392340,8.53e-05,94443.0,94422.0,0.15]
[1736518392546,8.53e-05,94443.0,94423.0,0.10779465]
[1736518392749,8.53e-05,94443.0,94441.0,0.21177]
[1736518393201,8.53e-05,94443.0,94436.0,0.211781]
[1736518393432,8.53e-05,94443.0,94420.0,0.002]
[1736518393649,8.53e-05,94443.0,94427.0,0.211803]
[1736518393860,8.53e-05,94443.0,94428.0,0.211801]
[1736518394068,8.53e-05,94443.0,94432.0,0.211792]
[1736518394290,8.53e-05,94443.0,94408.0,0.079]
[1736518394291,8.53e-05,94443.0,94409.0,0.15]
[1736518394496,8.53e-05,94443.0,94433.0,0.21179]
[1736518394703,8.53e-05,94443.0,94439.0,0.211774]
[1736518394907,8.53e-05,94443.0,94441.0,0.211772]
[1736518395127,8.53e-05,94443.0,94442.0,0.10429976]
[1736518395335,8.53e-05,94443.0,94442.0,0.38459423]
[1736518395467,0.0010853,94443.0,94442.0,0.38353549]
[1736518396346,8.53e-05,94443.0,94442.0,0.38353549]
[1736518396542,8.53e-05,94443.0,94442.0,0.37853549]
[1736518397055,8.53e-05,94443.0,94442.0,0.38753549]
[1736518397284,7.1e-07,94445.0,94444.0,0.25]
[1736518397443,8.52e-05,94481.0,94444.0,0.25]
[1736518397444,8.52e-05,94481.0,94480.0,0.211685]
[1736518397620,8.52e-05,94481.0,94480.0,0.31598476]
[1736518397827,8.52e-05,94481.0,94480.0,0.3225504]
[1736518399911,8.52e-05,94481.0,94480.0,0.00656564]
[1736518400164,8.52e-05,94481.0,94480.0,0.001]
[1736518400394,8.52e-05,94481.0,94471.0,0.211703]
[1736518400626,8.52e-05,94481.0,94472.0,0.10429976]
[1736518400864,8.52e-05,94481.0,94480.0,0.013]
[1736518401105,8.52e-05,94481.0,94480.0,0.004]
[1736518401343,8.52e-05,94481.0,94472.0,0.00658039]
[1736518401344,8.52e-05,94481.0,94472.0,0.211702]
[1736518401582,8.52e-05,94481.0,94445.0,0.293662]
[1736518401821,0.0230852,94481.0,94448.0,0.211756]
[1736518402069,0.211734,94458.0,94447.0,0.0066265]
[1736518402297,0.023,94479.0,94449.0,0.00662281]
[1736518402298,0.04425701,94479.0,94449.0,0.00662281]
[1736518402536,0.211716,94467.0,94450.0,0.211752]
[1736518402789,0.11593976,94478.0,94450.0,0.00662097]
[1736518403012,0.023,94475.0,94450.0,0.00662097]
[1736518403262,0.023,94473.0,94441.0,0.423542]
[1736518403503,0.211716,94466.0,94451.0,0.00661912]
[1736518403976,8.52e-05,94481.0,94453.0,0.15]
[1736518403981,0.211687,94479.0,94453.0,0.15]
[1736518404203,0.211691,94477.0,94465.0,0.211717]
[1736518404412,0.005,94478.0,94472.0,0.211702]
[1736518404413,0.002,94478.0,94472.0,0.211702]
[1736518404631,0.211685,94480.0,94468.0,0.21171]
[1736518404887,0.211685,94480.0,94473.0,0.00657855]
[1736518405149,8.52e-05,94481.0,94469.0,0.00658592]
[1736518405361,0.211685,94480.0,94474.0,0.0065767]
[1736518405570,0.211685,94480.0,94458.0,0.211733]
[1736518405571,0.211685,94480.0,94464.0,0.211719]
[1736518405787,0.211685,94480.0,94475.0,0.00657486]
[1736518406002,0.211695,94476.0,94462.0,0.211724]
[1736518406217,0.211729,94461.0,94444.0,0.0472]
[1736518406426,8.52e-05,94481.0,94463.0,0.00659699]
[1736518406664,0.211705,94471.0,94445.0,0.13125593]
[1736518406891,0.023,94478.0,94445.0,0.10429976]
[1736518407096,0.12729976,94480.0,94446.0,0.00662835]
[1736518407318,0.211716,94467.0,94464.0,0.001]
[1736518407766,0.211736,94457.0,94433.0,0.0819]
[1736518407949,0.211736,94457.0,94435.0,0.211785]
[1736518408148,0.423446,94463.0,94443.0,0.211765]
[1736518408429,0.211713,94468.0,94444.0,0.10429976]
[1736518408614,0.0020852,94481.0,94460.0,0.211729]
[1736518408831,0.211687,94479.0,94462.0,0.211725]
[1736518408953,0.211687,94479.0,94460.0,0.10429976]
[1736518409179,0.211715,94467.0,94435.0,0.15]
[1736518409380,0.211706,94471.0,94436.0,0.10535838]
[1736518409587,0.001,94468.0,94456.0,0.211736]
[1736518409782,0.211714,94467.0,94457.0,0.0211736]
[1736518409987,0.211726,94462.0,94436.0,0.10429976]
[1736518410207,0.211726,94462.0,94448.0,0.211754]
[1736518410523,0.001,94468.0,94449.0,0.10535843]
[1736518410868,0.001,94468.0,94450.0,0.15]
[1736518411072,8.52e-05,94481.0,94466.0,0.211715]
[1736518411279,8.52e-05,94481.0,94467.0,0.0211715]
[1736518411480,0.2117692,94481.0,94467.0,0.0211715]
[1736518411639,0.211676,94484.0,94468.0,0.211711]
[1736518411840,0.211682,94481.0,94467.0,0.0211715]
[1736518412045,0.00012813,94490.0,94480.0,0.211683]
[1736518412278,0.00012813,94490.0,94481.0,0.12546806]
[1736518412902,0.00012813,94490.0,94481.0,0.1265264]
[1736518413092,0.00012813,94490.0,94481.0,0.27652632]
[1736518413393,1e-06,94482.0,94481.0,0.37546806]
[1736518413803,1e-06,94482.0,94481.0,0.40825149]
[1736518414217,1.3e-07,94490.0,94489.0,0.35]
[1736518414424,1.3e-07,94490.0,94489.0,0.37709437]
[1736518414827,1.3e-07,94490.0,94489.0,1.87709437]
[1736518415031,1.3e-07,94490.0,94489.0,1.77709437]
[1736518415450,1.3e-07,94490.0,94489.0,1.87709437]
[1736518416232,1.3e-07,94490.0,94489.0,1.88709437]
[1736518416468,1.3e-07,94490.0,94489.0,0.11429976]
[1736518416692,1.3e-07,94490.0,94489.0,0.01]
[1736518416896,1.3e-07,94490.0,94489.0,0.0154949]
[1736518417103,1.3e-07,94490.0,94489.0,0.120853]
[1736518417550,1.3e-07,94490.0,94489.0,0.11979466]
[1736518418141,1.3e-07,94490.0,94489.0,0.12085289]
[1736518418562,1.3e-07,94490.0,94489.0,0.11979466]
[1736518418776,1.3e-07,94490.0,94489.0,0.0154949]
[1736518419481,1.3e-07,94490.0,94489.0,0.01]
[1736518420671,0.12729989,94490.0,94489.0,0.01]
[1736518421837,0.12729989,94490.0,94489.0,0.008]
[1736518422071,0.12829989,94490.0,94489.0,0.008]
[1736518422310,0.023,94489.0,94457.0,0.211735]
[1736518422535,0.211703,94472.0,94457.0,0.206735]
[1736518422821,0.211703,94472.0,94457.0,0.418471]
[1736518423008,0.211703,94472.0,94457.0,0.206735]
[1736518423277,0.211715,94467.0,94451.0,0.211749]
[1736518423503,0.211715,94467.0,94453.0,0.211745]
[1736518423743,0.211707,94470.0,94457.0,0.211736]
[1736518424032,0.211707,94470.0,94457.0,0.212736]
[1736518424275,0.211708,94470.0,94457.0,0.212736]
[1736518424532,0.023,94487.0,94457.0,0.001]
[1736518424732,0.311644,94499.0,94457.0,0.001]
[1736518424733,0.21171,94469.0,94457.0,0.001]
[1736518424934,0.211702,94472.0,94458.0,0.211734]
[1736518426076,0.211712,94468.0,94457.0,0.001]
[1736518426281,0.211712,94468.0,94457.0,0.211736]
[1736518426503,0.211702,94472.0,94453.0,0.002]
[1736518426704,0.023,94482.0,94453.0,0.002]
[1736518426916,0.211721,94464.0,94453.0,0.002]
[1736518427126,0.12818974,94481.0,94450.0,0.423502]
[1736518427127,0.023,94467.0,94450.0,0.423502]
[1736518427332,0.211699,94474.0,94457.0,0.01]
[1736518427744,0.211687,94479.0,94457.0,0.01]
[1736518427951,0.211687,94479.0,94459.0,0.211732]
[1736518428162,0.001,94467.0,94459.0,0.211732]
[1736518428582,0.001,94467.0,94460.0,0.00554837]
[1736518428785,0.001,94467.0,94461.0,0.211727]
[1736518429002,0.001,94467.0,94461.0,0.00554652]
[1736518429214,0.001,94467.0,94465.0,0.211717]
[1736518429625,0.001,94467.0,94466.0,0.0055373]
[1736518429828,0.006,94482.0,94466.0,0.0055373]
[1736518430037,0.211679,94483.0,94466.0,0.0055373]
[1736518430241,0.211679,94483.0,94471.0,0.211704]
[1736518430481,0.211687,94480.0,94472.0,0.00552624]
[1736518430683,0.211687,94480.0,94468.0,0.211711]
[1736518431073,0.211687,94480.0,94469.0,0.00553177]
[1736518431288,0.211687,94479.0,94469.0,0.00553177]
[1736518431703,0.211679,94483.0,94472.0,0.005]
[1736518432123,0.211687,94479.0,94472.0,0.005]
[1736518432330,0.211679,94483.0,94473.0,0.00052439]
[1736518432331,0.211698,94475.0,94473.0,0.00052439]
[1736518432543,0.12729976,94474.0,94473.0,0.00552439]
[1736518432763,0.12729976,94474.0,94472.0,0.005]
[1736518432764,0.2347,94473.0,94472.0,0.005]
[1736518432979,0.33899976,94473.0,94472.0,0.005]
[1736518433399,0.0116,94479.0,94312.0,0.827]
[1736518433400,0.0116,94479.0,94437.0,0.0832]
[1736518433577,0.211705,94471.0,94454.0,0.211742]
[1736518433786,0.211715,94467.0,94451.0,0.211749]
[1736518433994,0.211715,94467.0,94455.0,0.00472425]
[1736518434246,0.211715,94467.0,94454.0,0.211741]
[1736518434449,0.211708,94470.0,94456.0,0.00472241]
[1736518434662,0.211708,94470.0,94455.0,0.00472425]
[1736518434909,0.211709,94469.0,94457.0,0.00472057]
[1736518435138,0.0116,94479.0,94454.0,0.211741]
[1736518435139,0.211709,94470.0,94456.0,0.00472241]
[1736518435390,0.211709,94470.0,94458.0,0.00471872]
[1736518435629,0.421918,94470.0,94454.0,0.211741]